[Event "44th Chess Olympiad Women 2022"]
[Site "Chennai"]
[Date "2022.08.09"]
[Round "11.59"]
[White "Al Ghafri, Alanoud"]
[Black "Sisior, Angelil"]
[Result "0-1"]
[ECO "B06"]
[WhiteElo "1259"]
[BlackElo "1488"]
[Annotator "NA RC COMBH"]
[PlyCount "76"]
[EventDate "2022.07.29"]
[EventType "team-tourn"]
[EventCountry "IND"]
[SourceTitle "playchess.com"]
[Source "ChessBase"]
[SourceQuality "1"]
[WhiteTeam "OMA"]
[BlackTeam "PLW"]
[TimeControl "40/5400+30:1800+30"]

1. e4 {[%emt 0:00:08]} g6 {[%emt 0:00:29]} 2. d4 {[%emt 0:00:10]} Bg7 {[%emt 0:00:40]} 3. Nf3 {[%emt 0:00:07]} e6 {[%emt 0:00:48]} 4. Nc3 {[%emt 0:00:40]} Ne7 {[%emt 0:01:00]} 5. Bd3 {[%emt 0:00:44]} O-O {[%emt 0:00:25]} 6. O-O {[%emt 0:00:05]} d5 {[%emt 0:03:26]} 7. e5 {[%emt 0:00:07]} Nbc6 {[%emt 0:00:11]} 8. Re1 {[%emt 0:01:20]} Nb4 {[%emt 0:03:22]} 9. Ne2 {[%emt 0:02:42]} Nxd3 {[%emt 0:03:13]} 10. Qxd3 {[%emt 0:00:08]} b6 {[%emt 0:00:42]} 11. c3 {[%emt 0:00:25]} c5 {[%emt 0:01:54]} 12. Be3 {[%emt 0:00:25]} Nf5 {[%emt 0:04:55]} 13. dxc5 {[%emt 0:04:23]} Nxe3 {[%emt 0:03:07]} 14. Qxe3 {[%emt 0:00:07]} Rb8 {[%emt 0:21:02]} 15. cxb6 {[%emt 0:00:28]} Rxb6 {[%emt 0:01:26]} 16. Rab1 {[%emt 0:00:31]} Ba6 {[%emt 0:00:42]} 17. Ng3 {[%emt 0:02:17]} Qc7 {[%emt 0:01:42]} 18. Qf4 {[%emt 0:00:27]} Rfb8 {[%emt 0:02:24]} 19. Ng5 {[%emt 0:04:43]} Rxb2 {[%emt 0:03:26]} 20. Rxb2 {[%emt 0:00:55]} Rxb2 {[%emt 0:00:19]} 21. Qa4 {[%emt 0:01:34]} Bb5 {[%emt 0:04:56]} 22. Qa3 {[%emt 0:02:26]} Rc2 {[%emt 0:03:42]} 23. Qb3 {[%emt 0:00:43]} Bd3 {[%emt 0:03:04]} 24. Nf3 {[%emt 0:03:47]} Rxc3 {[%emt 0:01:03]} 25. Qb4 {[%emt 0:03:42]} Bf8 {[%emt 0:08:06]} 26. Qf4 {[%emt 0:04:29]} Rc2 {[%emt 0:07:25]} 27. a4 {[%emt 0:02:08]} Qc5 {[%emt 0:02:19]} 28. Ng5 {[%emt 0:04:06]} Qc7 {[%emt 0:03:21]} 29. h3 {[%emt 0:08:26]} Bc5 {[%emt 0:00:49]} 30. Kh2 {[%emt 0:02:30]} Bxf2 {[%emt 0:00:58]} 31. Rb1 {[%emt 0:00:50]} Bb6 {[%emt 0:00:48]} 32. a5 {[%emt 0:04:41]} Rxg2+ {[%emt 0:00:26]} 33. Kxg2 {[%emt 0:01:43]} Qc2+ {[%emt 0:02:30]} 34. Kf3 {[%emt 0:00:07]} Qf2+ {[%emt 0:00:12]} 35. Kg4 {[%emt 0:00:10]} h5+ {[%emt 0:02:07]} 36. Nxh5 {[%emt 0:00:39]} gxh5+ {[%emt 0:00:19]} 37. Kxh5 {[%emt 0:00:09]} Qxf4 {[%emt 0:00:04]} 38. axb6 {[%emt 0:00:32]} Be2+ {[%emt 0:00:15]} 0-1

[Event "44th Chess Olympiad Women 2022"]
[Site "Chennai"]
[Date "2022.08.09"]
[Round "11.60"]
[White "Viana, Valeria"]
[Black "Nkwanyane Nolwazi"]
[Result "1-0"]
[ECO "C54"]
[WhiteElo "1441"]
[BlackElo "1158"]
[Annotator "NA RC COMBH"]
[PlyCount "79"]
[EventDate "2022.07.29"]
[EventType "team-tourn"]
[EventCountry "IND"]
[SourceTitle "playchess.com"]
[Source "ChessBase"]
[SourceQuality "1"]
[WhiteTeam "Honduras"]
[BlackTeam "SWZ"]
[WhiteTeamCountry "HON"]
[TimeControl "40/5400+30:1800+30"]

1. e4 {[%emt 0:00:07]} e5 {[%emt 0:00:03]} 2. Nf3 {[%emt 0:00:06]} Nc6 {[%emt 0:00:02]} 3. Bc4 {[%emt 0:00:10]} Bc5 {[%emt 0:00:10]} 4. c3 {[%emt 0:00:25]} Nf6 {[%emt 0:13:24]} 5. d3 {[%emt 0:00:08]} h6 {[%emt 0:02:40]} 6. Nbd2 {[%emt 0:03:32]} d6 {[%emt 0:07:31]} 7. Bb3 {[%emt 0:03:52]} Bg4 {[%emt 0:03:33]} 8. h3 {[%emt 0:00:57]} Bh5 {[%emt 0:00:51]} 9. Bc2 {[%emt 0:02:20]} d5 {[%emt 0:06:11]} 10. exd5 {[%emt 0:05:39]} Qxd5 {[%emt 0:06:03]} 11. b4 {[%emt 0:02:29]} Bb6 {[%emt 0:02:43]} 12. Bb2 {[%emt 0:00:55]} a5 {[%emt 0:05:44]} 13. a3 {[%emt 0:03:25]} O-O {[%emt 0:01:58]} 14. O-O {[%emt 0:04:03]} Rfe8 {[%emt 0:08:19]} 15. Re1 {[%emt 0:07:39]} Ra7 {[%emt 0:04:32]} 16. c4 {[%emt 0:07:06]} Qd6 {[%emt 0:02:37]} 17. c5 {[%emt 0:01:27]} Bxc5 {[%emt 0:00:09]} 18. bxc5 {[%emt 0:00:06]} Qxc5 {[%emt 0:00:05]} 19. Nc4 {[%emt 0:16:47]} Nd7 {[%emt 0:19:29]} 20. g4 {[%emt 0:07:07]} Bg6 {[%emt 0:00:21]} 21. Ne3 {[%emt 0:00:41]} Nd4 {[%emt 0:04:09]} 22. Bxd4 {[%emt 0:04:53]} exd4 {[%emt 0:00:12]} 23. Nf5 {[%emt 0:03:16]} Rxe1+ {[%emt 0:02:40]} 24. Qxe1 {[%emt 0:12:14]} Bxf5 {[%emt 0:01:04]} 25. gxf5 {[%emt 0:01:28]} Qxf5 {[%emt 0:00:43]} 26. Kg2 {[%emt 0:02:11]} Qg6+ {[%emt 0:00:45]} 27. Kh2 {[%emt 0:00:34]} Qd6+ {[%emt 0:00:24]} 28. Kh1 {[%emt 0:00:50]} Qc6 {[%emt 0:00:45]} 29. Qe8+ {[%emt 0:02:17]} Kh7 {[%emt 0:00:32]} 30. Qe4+ {[%emt 0:00:07]} Qxe4 {[%emt 0:00:53]} 31. dxe4 {[%emt 0:00:05]} c5 {[%emt 0:00:15]} 32. e5+ {[%emt 0:00:37]} g6 {[%emt 0:01:20]} 33. Re1 {[%emt 0:01:19]} b5 {[%emt 0:00:44]} 34. e6 {[%emt 0:01:23]} fxe6 {[%emt 0:00:08]} 35. Rxe6 {[%emt 0:00:13]} Nf8 {[%emt 0:00:08]} 36. Rc6 {[%emt 0:01:10]} Re7 {[%emt 0:05:47]} 37. Rxc5 {[%emt 0:01:46]} Re2 {[%emt 0:00:42]} 38. Kg2 {[%emt 0:02:19]} Ne6 {[%emt 0:00:27]} 39. Rc6 {[%emt 0:01:12]} Nf4+ {[%emt 0:00:48]} 40. Kf1 {[%emt 0:00:31]} 1-0

[Event "44th Chess Olympiad Women 2022"]
[Site "Chennai"]
[Date "2022.08.09"]
[Round "11.60"]
[White "Mejia, Camila"]
[Black "Nomcebo, Sibisi"]
[Result "0-1"]
[ECO "B06"]
[WhiteElo "1330"]
[BlackElo "1225"]
[Annotator "NA RC COMBH"]
[PlyCount "91"]
[EventDate "2022.07.29"]
[EventType "team-tourn"]
[EventCountry "IND"]
[SourceTitle "playchess.com"]
[Source "ChessBase"]
[SourceQuality "1"]
[WhiteTeam "Honduras"]
[BlackTeam "SWZ"]
[WhiteTeamCountry "HON"]
[TimeControl "40/5400+30:1800+30"]

1. e4 {[%emt 0:00:20]} g6 {[%emt 0:00:09]} 2. d4 {[%emt 0:00:13]} Bg7 {[%emt 0:00:14]} 3. Nf3 {[%emt 0:00:18]} d6 {[%emt 0:00:07]} 4. Nc3 {[%emt 0:00:38]} Bg4 {[%emt 0:00:11]} 5. Be2 {[%emt 0:01:02]} Nd7 {[%emt 0:00:12]} 6. h3 {[%emt 0:02:55]} Bxf3 {[%emt 0:03:52]} 7. Bxf3 {[%emt 0:00:13]} e5 {[%emt 0:00:09]} 8. dxe5 {[%emt 0:02:31]} Nxe5 {[%emt 0:00:34]} 9. Bf4 {[%emt 0:04:03]} Nxf3+ {[%emt 0:01:56]} 10. Qxf3 {[%emt 0:00:34]} Nf6 {[%emt 0:00:37]} 11. O-O {[%emt 0:02:06]} O-O {[%emt 0:00:15]} 12. Rad1 {[%emt 0:00:46]} Qc8 {[%emt 0:01:58]} 13. Bg5 {[%emt 0:01:24]} Qe6 {[%emt 0:03:47]} 14. Rfe1 {[%emt 0:11:32]} Nd7 {[%emt 0:00:31]} 15. Nd5 {[%emt 0:00:18]} Ne5 {[%emt 0:02:43]} 16. Qg3 {[%emt 0:04:53]} Qd7 {[%emt 0:04:18]} 17. Be7 {[%emt 0:05:36]} Rfe8 {[%emt 0:01:31]} 18. f4 {[%emt 0:04:36]} Nc4 {[%emt 0:02:53]} 19. b3 {[%emt 0:01:58]} Nb2 {[%emt 0:00:08]} 20. Rd2 {[%emt 0:00:18]} Rxe7 {[%emt 0:00:11]} 21. Nxe7+ {[%emt 0:00:29]} Qxe7 {[%emt 0:00:29]} 22. e5 {[%emt 0:01:06]} dxe5 {[%emt 0:00:19]} 23. fxe5 {[%emt 0:00:32]} a5 {[%emt 0:01:15]} 24. a4 {[%emt 0:03:08]} b5 {[%emt 0:00:31]} 25. c4 {[%emt 0:01:00]} Qa3 {[%emt 0:03:54]} 26. Ree2 {[%emt 0:00:40]} Nxa4 {[%emt 0:00:41]} 27. Qf3 {[%emt 0:03:23]} Qc5+ {[%emt 0:00:15]} 28. Kf1 {[%emt 0:00:30]} Nb6 {[%emt 0:00:27]} 29. e6 {[%emt 0:04:16]} fxe6 {[%emt 0:00:23]} 30. Rxe6 {[%emt 0:00:23]} Rf8 {[%emt 0:00:10]} 31. Re8 {[%emt 0:04:27]} Rxe8 {[%emt 0:00:26]} 32. Qd3 {[%emt 0:02:45]} Rf8+ {[%emt 0:00:23]} 33. Ke2 {[%emt 0:02:36]} bxc4 {[%emt 0:00:21]} 34. bxc4 {[%emt 0:00:16]} Qxc4 {[%emt 0:00:11]} 35. Qxc4+ {[%emt 0:00:24]} Nxc4 {[%emt 0:00:11]} 36. Rc2 {[%emt 0:00:18]} Ne5 {[%emt 0:00:20]} 37. Rxc7 {[%emt 0:00:35]} Ra8 {[%emt 0:00:26]} 38. Kd1 {[%emt 0:01:04]} a4 {[%emt 0:00:10]} 39. Rc2 {[%emt 0:00:32]} a3 {[%emt 0:00:10]} 40. Ra2 {[%emt 0:00:07]} Nd3 {[%emt 0:00:26]} 41. g4 {[%emt 0:31:35]} Nb4 {[%emt 0:30:08]} 42. Rxa3 {[%emt 0:00:17]} Rxa3 {[%emt 0:00:10]} 43. h4 {[%emt 0:00:05]} Rg3 {[%emt 0:00:28]} 44. h5 {[%emt 0:00:07]} Rxg4 {[%emt 0:00:15]} 45. hxg6 {[%emt 0:00:09]} Rxg6 {[%emt 0:00:16]} 46. Kd2 {[%emt 0:03:36]} 0-1

[Event "44th Chess Olympiad Women 2022"]
[Site "Chennai"]
[Date "2022.08.09"]
[Round "11.60"]
[White "Nosimilo, Mkhonto"]
[Black "Garcia, Andrea Nicole"]
[Result "1/2-1/2"]
[ECO "C55"]
[WhiteElo "1313"]
[BlackElo "1631"]
[Annotator "NA RC COMBH"]
[PlyCount "92"]
[EventDate "2022.07.29"]
[EventType "team-tourn"]
[EventCountry "IND"]
[SourceTitle "playchess.com"]
[Source "ChessBase"]
[SourceQuality "1"]
[WhiteTeam "SWZ"]
[BlackTeam "Honduras"]
[BlackTeamCountry "HON"]
[TimeControl "40/5400+30:1800+30"]

1. e4 {[%emt 0:04:02]} e5 {[%emt 0:00:07]} 2. Nf3 {[%emt 0:00:04]} Nc6 {[%emt 0:00:12]} 3. Bc4 {[%emt 0:00:17]} Be7 {[%emt 0:00:09]} 4. c3 {[%emt 0:00:22]} Nf6 {[%emt 0:00:47]} 5. d3 {[%emt 0:00:57]} O-O {[%emt 0:00:40]} 6. Bb3 {[%emt 0:01:04]} a6 {[%emt 0:07:57]} 7. Nbd2 {[%emt 0:00:59]} d6 {[%emt 0:03:13]} 8. h3 {[%emt 0:02:06]} b5 {[%emt 0:02:45]} 9. Nf1 {[%emt 0:02:50]} Be6 {[%emt 0:17:44]} 10. Bc2 {[%emt 0:12:31]} h6 {[%emt 0:14:46]} 11. Ne3 {[%emt 0:05:05]} d5 {[%emt 0:05:38]} 12. Nf5 {[%emt 0:08:26]} dxe4 {[%emt 0:01:13]} 13. Nxe7+ {[%emt 0:04:25]} Qxe7 {[%emt 0:01:20]} 14. dxe4 {[%emt 0:00:21]} Rad8 {[%emt 0:03:13]} 15. Bd2 {[%emt 0:06:21]} Bc4 {[%emt 0:08:28]} 16. b3 {[%emt 0:00:29]} Bd3 {[%emt 0:00:59]} 17. Bxd3 {[%emt 0:00:37]} Rxd3 {[%emt 0:00:07]} 18. Qe2 {[%emt 0:00:33]} Rfd8 {[%emt 0:03:06]} 19. O-O {[%emt 0:08:01]} R3d7 {[%emt 0:02:23]} 20. Rad1 {[%emt 0:04:50]} Qe6 {[%emt 0:09:43]} 21. Bc1 {[%emt 0:03:01]} Rxd1 {[%emt 0:00:23]} 22. Rxd1 {[%emt 0:01:03]} Rxd1+ {[%emt 0:00:10]} 23. Qxd1 {[%emt 0:00:51]} Nxe4 {[%emt 0:00:16]} 24. Qd3 {[%emt 0:01:43]} Nf6 {[%emt 0:01:09]} 25. Qe3 {[%emt 0:01:12]} Qd5 {[%emt 0:05:31]} 26. Qd2 {[%emt 0:06:32]} Qxd2 {[%emt 0:00:27]} 27. Bxd2 {[%emt 0:00:56]} Ne4 {[%emt 0:01:22]} 28. Kf1 {[%emt 0:01:15]} f6 {[%emt 0:01:07]} 29. Ke2 {[%emt 0:01:03]} Kf7 {[%emt 0:02:11]} 30. Ke3 {[%emt 0:03:28]} Nd6 {[%emt 0:00:43]} 31. g4 {[%emt 0:04:23]} Ke6 {[%emt 0:01:32]} 32. Ne1 {[%emt 0:03:43]} Kd5 {[%emt 0:03:18]} 33. Nd3 {[%emt 0:04:23]} g5 {[%emt 0:02:59]} 34. f3 {[%emt 0:01:04]} a5 {[%emt 0:01:19]} 35. Nf2 {[%emt 0:00:40]} a4 {[%emt 0:01:20]} 36. Ne4 {[%emt 0:01:45]} Nxe4 {[%emt 0:00:00]} 37. fxe4+ {[%emt 0:00:12]} Kc5 {[%emt 0:00:00]} 38. b4+ {[%emt 0:00:57]} Kc4 {[%emt 0:00:23]} 39. Be1 {[%emt 0:03:16]} Ne7 {[%emt 0:02:35]} 40. Kd2 {[%emt 0:03:55]} Ng6 {[%emt 0:00:00]} 41. Bf2 {[%emt 0:01:33]} Nf4 {[%emt 0:11:05]} 42. h4 {[%emt 0:05:51]} Ne6 {[%emt 0:09:01]} 43. h5 {[%emt 0:03:18]} c5 {[%emt 0:00:00]} 44. Bxc5 {[%emt 0:09:24]} Nxc5 {[%emt 0:00:20]} 45. bxc5 {[%emt 0:00:30]} Kxc5 {[%emt 0:04:26]} 46. a3 Kc6 {[%emt 0:00:30]} 1/2-1/2

[Event "44th Chess Olympiad Women 2022"]
[Site "Chennai"]
[Date "2022.08.09"]
[Round "11.61"]
[White "Acham, Meritza"]
[Black "Ayele, Hana Mulugeta"]
[Result "0-1"]
[ECO "D30"]
[WhiteElo "1397"]
[BlackElo "1437"]
[Annotator "NA RC COMBH"]
[PlyCount "90"]
[EventDate "2022.07.29"]
[EventType "team-tourn"]
[EventCountry "IND"]
[SourceTitle "playchess.com"]
[Source "ChessBase"]
[SourceQuality "1"]
[WhiteTeam "Mauritius"]
[BlackTeam "Ethiopia"]
[WhiteTeamCountry "MRI"]
[BlackTeamCountry "ETH"]
[TimeControl "40/5400+30:1800+30"]

1. d4 {[%emt 0:00:03]} d5 {[%emt 0:00:06]} 2. Bf4 {[%emt 0:00:06]} e6 {[%emt 0:00:16]} 3. Nf3 {[%emt 0:00:23]} Nc6 {[%emt 0:00:18]} 4. e3 {[%emt 0:00:16]} Nf6 {[%emt 0:01:04]} 5. c4 {[%emt 0:01:12]} Bb4+ {[%emt 0:01:31]} 6. Nbd2 {[%emt 0:00:55]} dxc4 {[%emt 0:00:32]} 7. Bxc4 {[%emt 0:01:06]} O-O {[%emt 0:01:34]} 8. O-O {[%emt 0:00:28]} h6 {[%emt 0:00:24]} 9. a3 {[%emt 0:00:31]} Bd6 {[%emt 0:02:21]} 10. Bxd6 {[%emt 0:06:09]} cxd6 {[%emt 0:00:41]} 11. Qc2 {[%emt 0:00:55]} Re8 {[%emt 0:00:50]} 12. Rad1 {[%emt 0:02:09]} Bd7 {[%emt 0:02:22]} 13. e4 {[%emt 0:04:39]} Rc8 {[%emt 0:02:00]} 14. b4 {[%emt 0:03:00]} b5 {[%emt 0:01:45]} 15. Ba2 {[%emt 0:14:35]} Nxb4 {[%emt 0:01:33]} 16. Qb3 {[%emt 0:01:39]} Nxa2 {[%emt 0:01:48]} 17. Qxa2 {[%emt 0:00:09]} a6 {[%emt 0:03:03]} 18. Rc1 {[%emt 0:03:22]} Qb6 {[%emt 0:02:06]} 19. e5 {[%emt 0:04:06]} dxe5 {[%emt 0:02:18]} 20. dxe5 {[%emt 0:00:56]} Nd5 {[%emt 0:02:50]} 21. Ne4 {[%emt 0:03:26]} Red8 {[%emt 0:05:04]} 22. Nd6 {[%emt 0:01:58]} Rxc1 {[%emt 0:06:47]} 23. Rxc1 {[%emt 0:00:11]} f6 {[%emt 0:00:21]} 24. Qb2 {[%emt 0:02:23]} Be8 {[%emt 0:04:35]} 25. Nc8 {[%emt 0:03:18]} Qb8 {[%emt 0:01:37]} 26. Nd6 {[%emt 0:00:44]} fxe5 {[%emt 0:01:28]} 27. Nxe8 {[%emt 0:00:51]} Rxe8 {[%emt 0:00:36]} 28. Qxe5 {[%emt 0:05:03]} Qxe5 {[%emt 0:01:22]} 29. Nxe5 {[%emt 0:02:00]} Re7 {[%emt 0:03:13]} 30. Rc8+ {[%emt 0:01:41]} Kh7 {[%emt 0:00:18]} 31. h4 {[%emt 0:01:20]} g6 {[%emt 0:02:23]} 32. g4 {[%emt 0:01:44]} Kg7 {[%emt 0:01:18]} 33. Kh2 {[%emt 0:02:07]} Ra7 {[%emt 0:02:43]} 34. g5 {[%emt 0:03:05]} a5 {[%emt 0:01:49]} 35. Re8 {[%emt 0:04:44]} Re7 {[%emt 0:02:51]} 36. Ra8 {[%emt 0:01:11]} a4 {[%emt 0:00:57]} 37. Rb8 {[%emt 0:01:11]} Nc3 {[%emt 0:00:59]} 38. Rc8 {[%emt 0:04:49]} Nb1 {[%emt 0:00:55]} 39. Rh8 {[%emt 0:00:50]} Kxh8 {[%emt 0:02:29]} 40. Nxg6+ {[%emt 0:00:10]} Kg7 {[%emt 0:00:25]} 41. Nxe7 {[%emt 0:30:40]} hxg5 {[%emt 0:30:11]} 42. hxg5 {[%emt 0:00:14]} Nxa3 {[%emt 0:00:43]} 43. Nc6 {[%emt 0:00:25]} Nc2 {[%emt 0:00:33]} 44. f4 {[%emt 0:02:52]} a3 {[%emt 0:00:16]} 45. Nd8 {[%emt 0:00:51]} Nd4 {[%emt 0:00:40]} 0-1

[Event "44th Chess Olympiad Women 2022"]
[Site "Chennai"]
[Date "2022.08.09"]
[Round "11.61"]
[White "Beekhy, Aamirah"]
[Black "Bantiwalu, Aster Melake"]
[Result "1-0"]
[ECO "D02"]
[WhiteElo "1373"]
[BlackElo "1425"]
[Annotator "NA RC COMBH"]
[PlyCount "38"]
[EventDate "2022.07.29"]
[EventType "team-tourn"]
[EventCountry "IND"]
[SourceTitle "playchess.com"]
[Source "ChessBase"]
[SourceQuality "1"]
[WhiteTeam "Mauritius"]
[BlackTeam "Ethiopia"]
[WhiteTeamCountry "MRI"]
[BlackTeamCountry "ETH"]
[TimeControl "40/5400+30:1800+30"]

1. d4 {[%emt 0:00:04]} d5 {[%emt 0:00:16]} 2. Bf4 {[%emt 0:00:25]} Bf5 {[%emt 0:00:52]} 3. Nf3 {[%emt 0:00:54]} Nd7 {[%emt 0:00:33]} 4. e3 {[%emt 0:01:27]} e6 {[%emt 0:00:27]} 5. Be2 {[%emt 0:01:35]} Ngf6 {[%emt 0:00:35]} 6. h3 {[%emt 0:00:24]} h6 {[%emt 0:00:08]} 7. O-O {[%emt 0:00:17]} Be7 {[%emt 0:00:15]} 8. c4 {[%emt 0:02:11]} dxc4 {[%emt 0:00:37]} 9. Bxc4 {[%emt 0:00:15]} O-O {[%emt 0:00:11]} 10. Nc3 {[%emt 0:00:21]} Rc8 {[%emt 0:00:28]} 11. Rc1 {[%emt 0:02:55]} Bb4 {[%emt 0:00:51]} 12. Qb3 {[%emt 0:05:51]} Bxc3 {[%emt 0:01:00]} 13. Rxc3 {[%emt 0:11:04]} Ne4 {[%emt 0:00:48]} 14. Rcc1 {[%emt 0:00:38]} Nb6 {[%emt 0:02:12]} 15. Be2 {[%emt 0:02:27]} Qd5 {[%emt 0:01:16]} 16. Qa3 {[%emt 0:04:32]} Nd6 {[%emt 0:02:14]} 17. Rc5 {[%emt 0:11:50]} Ndc4 {[%emt 0:05:39]} 18. Bxc4 {[%emt 0:04:44]} Nxc4 {[%emt 0:00:32]} 19. Rxd5 {[%emt 0:00:22]} exd5 {[%emt 0:00:23]} 1-0

[Event "44th Chess Olympiad Women 2022"]
[Site "Chennai"]
[Date "2022.08.09"]
[Round "11.62"]
[White "Saraci, Ndriqona"]
[Black "Almusawi, Maram"]
[Result "1-0"]
[ECO "B15"]
[WhiteElo "1425"]
[BlackElo "1349"]
[Annotator "NA COMBH"]
[PlyCount "97"]
[EventDate "2022.07.29"]
[EventType "team-tourn"]
[EventCountry "IND"]
[SourceTitle "playchess.com"]
[Source "ChessBase"]
[SourceQuality "1"]
[WhiteTeam "Kosovo"]
[BlackTeam "Brunei"]
[WhiteTeamCountry "KOS"]
[BlackTeamCountry "BRN"]
[TimeControl "40/5400+30:1800+30"]

1. e4 {[%emt 0:00:06]} c6 {[%emt 0:00:22]} 2. Nf3 {[%emt 0:00:09]} d5 {[%emt 0:00:26]} 3. Nc3 {[%emt 0:00:55]} dxe4 {[%emt 0:00:58]} 4. Nxe4 {[%emt 0:00:12]} Nf6 {[%emt 0:00:45]} 5. Nxf6+ {[%emt 0:00:21]} exf6 {[%emt 0:00:14]} 6. d4 {[%emt 0:03:36]} Bd6 {[%emt 0:02:35]} 7. Bd3 {[%emt 0:01:20]} O-O {[%emt 0:01:38]} 8. O-O {[%emt 0:01:01]} Be6 {[%emt 0:03:21]} 9. Re1 {[%emt 0:01:28]} Qc7 {[%emt 0:01:26]} 10. h3 {[%emt 0:05:44]} Re8 {[%emt 0:03:28]} 11. c3 {[%emt 0:03:20]} Nd7 {[%emt 0:03:27]} 12. Qc2 {[%emt 0:01:15]} g6 {[%emt 0:01:19]} 13. a4 {[%emt 0:10:11]} a5 {[%emt 0:03:52]} 14. Bd2 {[%emt 0:02:35]} c5 {[%emt 0:07:54]} 15. dxc5 {[%emt 0:14:37]} Nxc5 {[%emt 0:00:56]} 16. Bb5 {[%emt 0:02:15]} Rec8 {[%emt 0:04:22]} 17. Nd4 {[%emt 0:06:04]} Bd7 {[%emt 0:07:43]} 18. Re2 {[%emt 0:05:36]} Ne6 {[%emt 0:10:12]} 19. Nxe6 {[%emt 0:04:04]} Bxe6 {[%emt 0:00:24]} 20. Rae1 {[%emt 0:06:02]} Rd8 {[%emt 0:06:48]} 21. Be3 {[%emt 0:08:24]} Bf5 {[%emt 0:05:23]} 22. Qc1 {[%emt 0:03:52]} Bd7 {[%emt 0:02:28]} 23. Bxd7 {[%emt 0:02:05]} Qxd7 {[%emt 0:00:40]} 24. Qc2 {[%emt 0:00:59]} Qc6 {[%emt 0:01:42]} 25. Bd4 {[%emt 0:03:02]} Kg7 {[%emt 0:02:38]} 26. Qb3 {[%emt 0:02:14]} Re8 {[%emt 0:02:56]} 27. Rxe8 {[%emt 0:01:02]} Rxe8 {[%emt 0:00:09]} 28. Rxe8 {[%emt 0:00:33]} Qxe8 {[%emt 0:00:06]} 29. Kf1 {[%emt 0:00:58]} Qc6 {[%emt 0:00:45]} 30. Qb6 {[%emt 0:04:15]} Qxb6 {[%emt 0:01:18]} 31. Bxb6 {[%emt 0:00:10]} Kf8 {[%emt 0:00:33]} 32. Bxa5 {[%emt 0:00:10]} Ke7 {[%emt 0:00:28]} 33. Bb4 {[%emt 0:00:20]} Bxb4 {[%emt 0:00:10]} 34. cxb4 {[%emt 0:00:01]} Kd6 {[%emt 0:00:12]} 35. Ke2 {[%emt 0:00:13]} Kd5 {[%emt 0:00:20]} 36. Kd3 {[%emt 0:00:24]} f5 {[%emt 0:01:14]} 37. a5 {[%emt 0:00:43]} g5 {[%emt 0:00:52]} 38. b5 {[%emt 0:00:51]} Kc5 {[%emt 0:00:42]} 39. a6 {[%emt 0:00:15]} Kb6 {[%emt 0:02:38]} 40. axb7 {[%emt 0:00:10]} Kxb7 {[%emt 0:00:07]} 41. Kd4 {[%emt 0:30:07]} f6 {[%emt 0:30:29]} 42. Kd5 {[%emt 0:00:07]} h5 {[%emt 0:05:28]} 43. Ke6 {[%emt 0:00:31]} f4 {[%emt 0:01:24]} 44. Kxf6 {[%emt 0:00:34]} g4 {[%emt 0:00:26]} 45. hxg4 {[%emt 0:00:14]} hxg4 {[%emt 0:00:11]} 46. Kf5 {[%emt 0:00:18]} g3 {[%emt 0:00:54]} 47. f3 {[%emt 0:00:15]} Kb6 {[%emt 0:00:16]} 48. Kxf4 {[%emt 0:00:06]} Kxb5 {[%emt 0:00:34]} 49. Kxg3 {[%emt 0:00:06]} 1-0

[Event "44th Chess Olympiad Women 2022"]
[Site "Chennai"]
[Date "2022.08.09"]
[Round "11.62"]
[White "Ahmed, Najla"]
[Black "Saraci, Rinesa"]
[Result "0-1"]
[ECO "A45"]
[WhiteElo "1176"]
[BlackElo "1494"]
[Annotator "NA RC COMBH"]
[PlyCount "100"]
[EventDate "2022.07.29"]
[EventType "team-tourn"]
[EventCountry "IND"]
[SourceTitle "playchess.com"]
[Source "ChessBase"]
[SourceQuality "1"]
[WhiteTeam "Brunei"]
[BlackTeam "Kosovo"]
[WhiteTeamCountry "BRN"]
[BlackTeamCountry "KOS"]
[TimeControl "40/5400+30:1800+30"]

1. d4 {[%emt 0:00:03]} Nf6 {[%emt 0:00:13]} 2. Bg5 {[%emt 0:00:53]} d6 {[%emt 0:01:01]} 3. Bxf6 {[%emt 0:00:18]} exf6 {[%emt 0:00:45]} 4. e3 {[%emt 0:00:47]} Be7 {[%emt 0:11:48]} 5. Bd3 {[%emt 0:01:36]} g6 {[%emt 0:01:23]} 6. Ne2 {[%emt 0:03:48]} O-O {[%emt 0:01:18]} 7. O-O {[%emt 0:01:47]} Nc6 {[%emt 0:07:54]} 8. c3 {[%emt 0:00:58]} Re8 {[%emt 0:02:41]} 9. Nf4 {[%emt 0:06:17]} Bf8 {[%emt 0:05:02]} 10. Nd5 {[%emt 0:00:18]} Bg7 {[%emt 0:03:27]} 11. Nd2 {[%emt 0:03:06]} Ne7 {[%emt 0:01:28]} 12. Nf4 {[%emt 0:05:12]} c6 {[%emt 0:04:31]} 13. Qf3 {[%emt 0:02:35]} Bf5 {[%emt 0:11:24]} 14. Bc4 {[%emt 0:05:07]} d5 {[%emt 0:10:00]} 15. Bb3 {[%emt 0:00:09]} Qd7 {[%emt 0:01:06]} 16. h3 {[%emt 0:00:24]} Nc8 {[%emt 0:06:58]} 17. c4 {[%emt 0:01:56]} dxc4 {[%emt 0:03:10]} 18. Nxc4 {[%emt 0:00:19]} Nd6 {[%emt 0:03:14]} 19. Rad1 {[%emt 0:02:10]} Be4 {[%emt 0:06:12]} 20. Qe2 {[%emt 0:01:50]} Nxc4 {[%emt 0:04:36]} 21. Qxc4 {[%emt 0:02:05]} g5 {[%emt 0:00:58]} 22. Ne2 {[%emt 0:10:32]} Bd5 {[%emt 0:01:55]} 23. Qc3 {[%emt 0:02:30]} Be6 {[%emt 0:05:29]} 24. e4 {[%emt 0:02:15]} Bxb3 {[%emt 0:00:34]} 25. Qxb3 {[%emt 0:00:10]} Rxe4 {[%emt 0:00:37]} 26. Qd3 {[%emt 0:08:39]} Rae8 {[%emt 0:01:03]} 27. Rfe1 {[%emt 0:01:48]} f5 {[%emt 0:01:19]} 28. Kf1 {[%emt 0:03:10]} Qd6 {[%emt 0:01:27]} 29. Ng3 {[%emt 0:04:17]} Rxe1+ {[%emt 0:01:03]} 30. Rxe1 {[%emt 0:00:08]} Rxe1+ {[%emt 0:00:10]} 31. Kxe1 {[%emt 0:00:08]} Qxd4 {[%emt 0:00:45]} 32. Qxf5 {[%emt 0:02:34]} Qe5+ {[%emt 0:00:32]} 33. Qxe5 {[%emt 0:00:50]} Bxe5 {[%emt 0:00:05]} 34. b3 {[%emt 0:00:28]} Bxg3 {[%emt 0:00:05]} 35. fxg3 {[%emt 0:00:11]} a5 {[%emt 0:01:17]} 36. Kd2 {[%emt 0:07:17]} Kf8 {[%emt 0:00:33]} 37. Kc3 {[%emt 0:00:12]} Ke7 {[%emt 0:00:14]} 38. a4 {[%emt 0:09:48]} b5 {[%emt 0:01:10]} 39. Kd3 {[%emt 0:03:17]} Kd6 {[%emt 0:00:29]} 40. Kd4 {[%emt 0:01:58]} bxa4 {[%emt 0:01:22]} 41. bxa4 {[%emt 0:30:12]} h6 {[%emt 0:31:07]} 42. Kc4 {[%emt 0:00:52]} h5 {[%emt 0:00:00]} 43. Kd4 {[%emt 0:00:00]} c5+ {[%emt 0:00:00]} 44. Kc4 {[%emt 0:00:00]} Kc6 {[%emt 0:00:00]} 45. h4 {[%emt 0:00:00]} g4 {[%emt 0:00:00]} 46. Kd3 {[%emt 0:00:00]} Kd5 {[%emt 0:00:00]} 47. Kc3 {[%emt 0:00:00]} c4 {[%emt 0:00:00]} 48. Kd2 {[%emt 0:00:00]} Kd4 {[%emt 0:00:00]} 49. Kc2 {[%emt 0:00:00]} c3 {[%emt 0:00:00]} 50. Kd1 {[%emt 0:00:00]} Ke5 {[%emt 0:00:46]} 0-1